Cogmind - Beta 12 @@@ ROGUE MODE // 2023.06.10 @ 20:35:11 Player: LU-1G1 Result: Destroyed 0b10! Performance ------------- Evolutions (9) 4500 Regions Visited (32) 6400 Robots Destroyed (130) 650 Value Destroyed (3518) 3518 Prototype IDs (61) 1220 Alien Tech Used (12) 2400 Bonus (28383) 28383 TOTAL SCORE: 47071 Bonus ------- Triggered Max Security 2000 High Alert Combat Kills 192 Follower Combat Kills 1247 Network Hubs Disabled 200 Aligned with FarCom 300 Met Data Miner 300 Met Imprinter 300 Destroyed Z-Imprinter 1000 Met Zhirov 300 Met Warlord at Base 500 MAIN.C Attacked Warlord 500 Used Core Reset Matrix 3000 Met Warlord at Research 2000 Met Sigix 2000 Activated Exoskeleton 3000 Escaped with Exo-Sigix 10000 Win 3000 Friendly Fire -1456 Cogmind --------- Core Integrity 1254/1850 Matter 169/300 Energy 420/700 System Corruption 0% Temperature Warm (175) Movement Flying (9) Location Tau Ceti IV Orbit Parts ------- > --- POWER (3) -------- (None) > --- PROPULSION (11) -- Q-thruster Electron Diverter Electron Diverter Impulse Thruster Array Impulse Thruster Array Cooled Q-thruster Experimental Q-thruster Experimental Q-thruster > --- UTILITY (10) ----- Medium Storage Unit Experimental Energy Well Advanced Sensor Array Advanced Signal Interpreter Advanced Terrain Scan Processor Improved Utility Shielding Advanced EM Disruption Field Advanced Force Field > --- WEAPON (2) ------- Core Cannon > --- INVENTORY (10) --- Experimental Energy Well (600) Integrity Redistributor Compact HERF Cannon Enhanced Nova Cannon Enhanced Nova Cannon Power Maul Peak State ------------ > --- POWER ------------ Light Angular Momentum Engine Light Fission Core Improved Fusion Compressor > --- PROPULSION ------- Electron Diverter Electron Diverter Improved Diametric Drive Impulse Thruster Array Impulse Thruster Array Impulse Thruster Array Experimental Q-thruster > --- UTILITY ---------- 2N-1CE's Frost Array Medium Storage Unit Experimental Energy Well Advanced Sensor Array Advanced Signal Interpreter Advanced Terrain Scan Processor Centrium Medium Armor Plating Advanced EM Disruption Field Advanced Force Field > --- WEAPON ----------- Enhanced Nova Cannon Power Maul > --- INVENTORY -------- Improved VTOL Module Experimental Energy Well Makeshift Ablative Armor Advanced Shield Generator High-powered Transdimensional Reconstructor Compact HERF Cannon Core Cannon Sigix Containment Pod [Rating: 183] Favorites ----------- Power Light Nuclear Core Engine Ion Engine Power Core Light Nuclear Core Reactor Zionite Light DM Reactor Propulsion Improved VTOL Module Treads Light Treads Leg Potential Leg Hover Unit Antigrav System Flight Unit Improved VTOL Module Utility Small Storage Unit Device Improved Heat Sink Storage Small Storage Unit Processor Improved Signal Interpreter Hackware Advanced Hacking Suite Protection Medium Insulated Plating Weapon Autogun Energy Gun Backup Laser III Energy Cannon Enhanced Nova Cannon Ballistic Gun Autogun Ballistic Cannon Omega Cannon Launcher Rocket Launcher Special Weapon Plasma Cutter Impact Weapon Heavy Flail Slashing Weapon Greatsword Build | -11 -10 -10 -10 -9 -8 -7 -7 -7 -7 -6 -6 -6 -6 -6 -6 -5 -5 -5 -5 -5 -4 -4 -4 -4 -4 -4 -3 -3 -2 -2 -2 -1 ------- Run | Jun Mat Min Exi Min Mat Fac Low Low Dat Pro Fac Low Low Zio Dee Pro Fac Upp Upp War Pro Fac Ext Cet Arc Hub Res Tes Res Qua Sec Acc Slots Evolved 18 | . . . . . 4 2 . . . . 2 . . . . . 2 . . . . 2 . . . . 2 . 2 . . 2 Power 1 | . . . . . . . . . . . 1 . . . . . . . . . . . . . . . . . . . . . Propulsion 9 | . . . . . 2 1 . . . . 1 . . . . . 1 . . . . 2 . . . . . . 1 . . 1 Utility 8 | . . . . . 2 1 . . . . . . . . . . 1 . . . . . . . . . 2 . 1 . . 1 Weapon . | . . . . . . . . . . . . . . . . . . . . . . . . . . . . . . . . . Parts Attached 268 | 7 9 . 5 6 42 21 . 2 . 4 4 2 . 1 20 4 14 4 2 11 1 9 18 5 . 11 8 15 21 5 11 6 Power 35 | 1 1 . . 1 3 1 . . . . 1 . . . 3 . 6 2 . 1 . 2 3 1 . 3 . 1 4 . 1 . Engine 9 | 1 1 . . 1 3 . . . . . . . . . . . . . . . . . 1 . . . . 1 1 . . . Core 20 | . . . . . . 1 . . . . 1 . . . 1 . 5 1 . . . 2 1 1 . 3 . . 3 . 1 . Reactor 6 | . . . . . . . . . . . . . . . 2 . 1 1 . 1 . . 1 . . . . . . . . . Propulsion 62 | 2 . . 4 2 17 7 . . . . 2 . . . 1 . 2 . 1 3 . 4 2 . . 3 2 1 5 . 1 3 Treads 22 | 2 . . 2 2 16 . . . . . . . . . . . . . . . . . . . . . . . . . . . Leg 2 | . . . 2 . . . . . . . . . . . . . . . . . . . . . . . . . . . . . Wheel . | . . . . . . . . . . . . . . . . . . . . . . . . . . . . . . . . . Hover 2 | . . . . . . . . . . . . . . . . . 1 . . . . . . . . . 1 . . . . . Flight 36 | . . . . . 1 7 . . . . 2 . . . 1 . 1 . 1 3 . 4 2 . . 3 1 1 5 . 1 3 Utility 112 | 2 1 . 1 . 8 8 . 2 . 4 1 2 . 1 14 4 3 2 . 7 . 1 8 2 . 4 3 10 9 5 9 1 Device 48 | 1 1 . . . 2 2 . 1 . 2 . 2 . 1 7 3 1 2 . 4 . 1 2 . . 3 1 3 3 2 4 . Storage 14 | 1 . . 1 . . 1 . . . . . . . . 2 . . . . . . . 2 . . 1 1 2 2 1 . . Processor 6 | . . . . . . 1 . . . . . . . . . . . . . 2 . . . . . . . 1 2 . . . Hackware 5 | . . . . . . 2 . . . . . . . . . . 1 . . . . . . . . . 1 1 . . . . Protection 39 | . . . . . 6 2 . 1 . 2 1 . . . 5 1 1 . . 1 . . 4 2 . . . 3 2 2 5 1 Artifact . | . . . . . . . . . . . . . . . . . . . . . . . . . . . . . . . . . Weapon 59 | 2 7 . . 3 14 5 . . . . . . . . 2 . 3 . 1 . 1 2 5 2 . 1 3 3 3 . . 2 Energy Gun 1 | . 1 . . . . . . . . . . . . . . . . . . . . . . . . . . . . . . . Energy Cannon 7 | . . . . . . . . . . . . . . . . . 1 . . . . . . . . . 1 1 2 . . 2 Ballistic Gun 25 | 2 6 . . 2 10 1 . . . . . . . . 1 . . . . . . . 1 1 . 1 . . . . . . Ballistic Cannon 1 | . . . . . . . . . . . . . . . . . . . . . . . . . . . . 1 . . . . Launcher 8 | . . . . 1 . 1 . . . . . . . . . . 2 . 1 . 1 1 1 . . . . . . . . . Special Weapon 1 | . . . . . 1 . . . . . . . . . . . . . . . . . . . . . . . . . . . Impact Weapon 12 | . . . . . 3 2 . . . . . . . . . . . . . . . 1 2 . . . 2 1 1 . . . Slashing Weapon 4 | . . . . . . 1 . . . . . . . . 1 . . . . . . . 1 1 . . . . . . . . Piercing Weapon . | . . . . . . . . . . . . . . . . . . . . . . . . . . . . . . . . . Special Melee Weapon . | . . . . . . . . . . . . . . . . . . . . . . . . . . . . . . . . . Unidentified Prototypes 28 | . 1 . . . 1 1 . . . . 1 . . . 6 1 . . . 6 . . 1 1 . 2 . 3 1 2 . 1 Parts Lost 46 | . 2 . . 6 8 . . . . . . . . . 2 . 4 . . 3 . 4 2 . . 2 . 1 5 1 . 6 Power 12 | . 1 . . 1 1 . . . . . . . . . . . 1 . . 1 . 1 1 . . . . . 3 . . 2 Propulsion 11 | . . . . 2 1 . . . . . . . . . 1 . 1 . . 1 . 2 . . . 1 . . . . . 2 Utility 17 | . 1 . . 1 3 . . . . . . . . . 1 . 1 . . 1 . 1 1 . . 1 . 1 2 1 . 2 Weapon 6 | . . . . 2 3 . . . . . . . . . . . 1 . . . . . . . . . . . . . . . Highest Loss Streak 6 | . 1 . . 6 5 . . . . . . . . . 2 . 3 . . 3 . 4 2 . . 1 . 1 3 1 . 3 To Critical Strikes . | . . . . . . . . . . . . . . . . . . . . . . . . . . . . . . . . . Average Slot Usage (%) 93 | . 99 100 100 98 97 95 92 92 92 92 92 93 93 93 92 87 88 83 83 90 83 86 90 95 95 93 81 88 78 87 83 72 Engine 5 | . 14 14 14 14 8 . . . . . . . . . . . . . . . . . 1 . . . . 3 1 4 4 . Core 4 | . . . . . . 6 7 7 7 7 13 13 13 13 6 6 9 11 11 10 5 6 5 8 10 10 4 4 5 8 5 1 Reactor 1 | . . . . . . . . . . . . . . . 5 6 4 . . 5 5 5 2 5 5 5 4 4 1 . . . Treads 13 | . 28 28 27 28 34 1 . . . . . . . . . . . . . . . . . . . . . . . . . . Flight 20 | . . . . . . 35 38 38 38 38 39 40 40 40 40 37 37 33 35 37 38 42 43 45 45 43 31 31 32 29 29 29 Device 13 | . 13 14 14 12 8 14 23 22 23 19 13 13 13 13 13 15 20 22 22 21 16 15 15 15 15 15 16 15 11 16 12 11 Storage 9 | . 14 14 14 14 9 7 7 7 7 7 6 6 6 6 5 6 5 5 5 5 5 5 7 10 10 10 12 7 5 8 8 7 Processor 2 | . . . . . . 6 7 7 7 7 6 6 6 6 6 3 . . . . . . . . . . . . 6 8 8 7 Protection 5 | . . . . . 17 1 . . . 3 6 6 6 6 5 6 4 5 5 5 11 8 7 5 5 5 4 4 5 4 6 4 Ballistic Gun 11 | . 27 28 28 27 17 4 . . . . . . . . . . . . . . . . . 1 . . . . . . . . Impact Weapon 1 | . . . . . . 4 . . . . . . . . . . . . . . . 2 4 5 5 4 4 4 4 4 4 2 Slashing Weapon 1 | . . . . . . 2 7 7 7 7 6 6 6 6 5 6 1 . . . . . 1 . . . . . . . . . Naked Turns . | . . . . . . . . . . . . . . . . . . . . . . . . . . . . . . . . . Heaviest Build 76 | 13 17 17 52 52 70 69 19 21 19 21 26 27 26 27 36 30 41 30 29 41 37 48 44 45 44 46 52 60 65 75 76 71 Greatest Support 84 | 40 40 40 60 40 82 82 25 25 25 25 31 31 31 31 31 31 36 31 39 41 38 46 49 45 45 51 57 60 77 77 77 84 Greatest Overweight (x) 1 | . . . 1 1 1 . . . . . . . . . 1 . 1 . . . . 1 1 . . . . . . . . . Average Overweight (x) . | . . . . 1 . . . . . . . . . . . . . . . . . . . . . . . . . . . . Largest Inventory Capacity 20 | 8 8 8 20 20 20 20 8 8 8 8 8 8 8 8 8 8 8 8 8 8 8 8 8 8 8 8 8 8 10 10 10 10 Average Capacity 12 | 7 8 8 18 20 20 9 8 8 8 8 8 8 8 8 7 8 8 8 8 8 8 8 8 8 8 8 8 8 8 10 10 10 Most Carried 20 | 7 8 8 12 13 20 20 8 8 8 8 8 8 8 8 8 8 8 7 8 8 8 8 8 8 8 8 8 8 10 10 10 9 Average Carried 9 | 6 7 8 9 12 17 9 8 7 8 8 7 8 8 8 7 7 7 6 7 7 7 6 7 7 8 7 7 7 7 9 9 7 Final Capacity 20 | 8 8 8 20 20 20 8 8 8 8 8 8 8 8 8 8 8 8 8 8 8 8 8 8 8 8 8 8 8 10 10 10 10 Final Carried 20 | 6 8 8 9 8 20 8 8 8 8 8 8 8 8 8 8 7 8 6 8 7 8 8 8 8 8 8 8 8 10 10 8 6 Class Distribution -------------------- 42% | Scavenger-Sprinter 37% | Mutant 11% | Scavenger-Mutant 3% | Alien-Sprinter Dominant Class ---------------- Mutant | -10/Materials Mutant | -10/Mines Mutant | -10/Exiles Mutant | -9/Mines Scavenger-Mutant | -8/Materials Scavenger-Sprinter | -7/Factory Scavenger-Sprinter | -7/Lower Caves Scavenger-Sprinter | -7/Lower Caves Scavenger-Sprinter | -7/Data Miner Scavenger-Sprinter | -6/Proximity Caves Scavenger-Sprinter | -6/Factory Scavenger-Sprinter | -6/Lower Caves Scavenger-Sprinter | -6/Lower Caves Scavenger-Sprinter | -6/Zion Scavenger-Sprinter | -6/Deep Caves Scavenger-Sprinter | -5/Proximity Caves Scavenger-Sprinter | -5/Factory Scavenger-Sprinter | -5/Upper Caves Scavenger-Sprinter | -5/Upper Caves Scavenger-Sprinter | -5/Warlord Sprinter | -4/Proximity Caves Sprinter | -4/Factory Scavenger-Sprinter | -4/Extension Scavenger-Sprinter | -4/Cetus Scavenger-Sprinter | -4/Archives Scavenger-Sprinter | -4/Hub_04(d) Scavenger-Sprinter | -3/Research Scavenger-Sprinter | -3/Testing Sprinter | -2/Research Scavenger-Scout | -2/Quarantine Alien-Sprinter | -2/Section 7 Alien-Sprinter | -1/Access Resources | -11 -10 -10 -10 -9 -8 -7 -7 -7 -7 -6 -6 -6 -6 -6 -6 -5 -5 -5 -5 -5 -4 -4 -4 -4 -4 -4 -3 -3 -2 -2 -2 -1 ----------- Run | Jun Mat Min Exi Min Mat Fac Low Low Dat Pro Fac Low Low Zio Dee Pro Fac Upp Upp War Pro Fac Ext Cet Arc Hub Res Tes Res Qua Sec Acc Matter Collected 6517 | 307 413 . 432 305 1570 197 13 . . 60 30 30 . . 190 . 222 30 116 256 72 27 897 136 . 97 70 61 558 307 4 117 Remotely . | . . . . . . . . . . . . . . . . . . . . . . . . . . . . . . . . . Salvage Created 5369 | 130 423 . . 99 1858 57 . 77 . 34 257 48 17 . 57 . 114 . . . 76 50 548 118 . 375 213 31 80 536 . 171 Parts 256 | 18 22 . . 9 104 2 . 5 . 2 8 3 1 . 2 . 3 . . . 8 6 24 6 . 6 2 3 4 14 . 4 Haulers Intercepted 9 | . . . . . 5 . . . . . 1 . . . . . 1 . . . . . . . . 2 . . . . . . Recyclers Shooed 7 | . 4 . . . 3 . . . . . . . . . . . . . . . . . . . . . . . . . . . Parts Field Recycled . | . . . . . . . . . . . . . . . . . . . . . . . . . . . . . . . . . Retrieved Matter . | . . . . . . . . . . . . . . . . . . . . . . . . . . . . . . . . . Parts Self-Destructed 10 | . . . . . . . . . . 8 . . . . . . . . . . 2 . . . . . . . . . . . Prevented 2 | . . . . . . . . . . . . . . . . 1 . . 1 . . . . . . . . . . . . . Kills | -11 -10 -10 -10 -9 -8 -7 -7 -7 -7 -6 -6 -6 -6 -6 -6 -5 -5 -5 -5 -5 -4 -4 -4 -4 -4 -4 -3 -3 -2 -2 -2 -1 ------- Run | Jun Mat Min Exi Min Mat Fac Low Low Dat Pro Fac Low Low Zio Dee Pro Fac Upp Upp War Pro Fac Ext Cet Arc Hub Res Tes Res Qua Sec Acc Combat Hostiles Destroyed 60 | . 10 . . 8 23 . . . . . . . . . 1 . . . . . 5 4 4 1 . . . . . 3 . 1 Melee 3 | . . . . . 1 . . . . . . . . . 1 . . . . . . . 1 . . . . . . . . . Guns 40 | . 10 . . 7 22 . . . . . . . . . . . . . . . . . . 1 . . . . . . . . Cannons 4 | . . . . . . . . . . . . . . . . . . . . . . . . . . . . . . 3 . 1 AOE 12 | . . . . 1 . . . . . . . . . . . . . . . . 5 3 3 . . . . . . . . . Classes Destroyed 18 | 3 3 . . 1 7 . . 1 . . . . 1 . 1 . . . . . . . . . . . . . . 1 . . Worker 17 | 2 1 . . . 4 . . . . . 1 . . . . . . . . . . . 4 . . 3 . . 1 1 . . Builder 3 | . . . . . 1 . . . . . . . . . . . . . . . . . 1 . . . 1 . . . . . Tunneler 10 | 5 . . . . 2 . . . . . . . . . . . . . . . . . 2 . . . 1 . . . . . Hauler 9 | . . . . . 5 . . . . . 1 . . . . . 1 . . . . . . . . 2 . . . . . . Recycler 15 | 1 1 . . . 4 1 . . . . . . . . . . . . . . . . 2 . . 1 1 . . 3 . 1 Operator 8 | . 1 . . . 3 . . . . . . . . . . . . . . . . . 1 . . . 1 1 1 . . . Watcher 7 | . . . . . 3 . . . . . . . . . . . . . . . . . 2 1 . . . . 1 . . . Swarmer 25 | . 3 . . 6 4 . . . . . . . . . . . . . . . 5 4 3 . . . . . . . . . Grunt 18 | . 7 . . . 10 . . . . . . . . . . . . . . . . . 1 . . . . . . . . . Brawler 1 | . . . . . 1 . . . . . . . . . . . . . . . . . . . . . . . . . . . Duelist 1 | . . . . . 1 . . . . . . . . . . . . . . . . . . . . . . . . . . . Sentry 5 | . . . . . 5 . . . . . . . . . . . . . . . . . . . . . . . . . . . Demolisher 2 | . . . . 2 . . . . . . . . . . . . . . . . . . . . . . . . . . . . Hunter 3 | . . . . . 2 . . . . . . . . . . . . . . . . . . . . . . . . . . 1 Programmer 3 | . . . . . . . . . . . . . . . . . . . . . . . . . . . . . . 3 . . Cetus Guard 1 | . . . . . . . . . . . . . . . . . . . . . . . . 1 . . . . . . . . Enhanced Grunt 1 | . . . . . . . . . . . . . . . 1 . . . . . . . . . . . . . . . . . Z-Technician 1 | . . . . . . . . . . . . . . . 1 . . . . . . . . . . . . . . . . . Z-Light 1 | . . . . . . . . . . . . . . . 1 . . . . . . . . . . . . . . . . . Decomposer 2 | . . . . . . . . . . . . 1 . . . . . . . . 1 . . . . . . . . . . . Samaritan 4 | . . . . . . . . 2 . 1 . 1 . . . . . . . . . . . . . . . . . . . . Tinkerer 1 | . . . . . . . . . . . . . 1 . . . . . . . . . . . . . . . . . . . Best Kill Streak 9 | 3 4 . . 3 9 1 . . . . 1 . . . 1 . 1 . . . 5 4 8 1 . 4 3 1 1 4 . 1 Combat Bots Only 8 | . 3 . . 3 8 . . . . . . . . . 1 . . . . . 5 4 3 1 . . . . . 3 . 1 Max Kills in Single Turn 4 | 1 1 . . 1 2 1 . 1 . 1 1 1 1 . 2 . 1 . . . 4 2 2 1 . 1 1 1 1 1 . 1 Gunslinging . | . . . . . . . . . . . . . . . . . . . . . . . . . . . . . . . . . Exploded 3 | . . . . 1 . . . . . . . . . . . . . . . . 3 1 2 . . . . . . . . . Melee 1 | . . . . . 1 . . . . . . . . . 1 . . . . . . . 1 . . . . . . . . . Uniques/NPCs Destroyed 1 | . . . . . . . . . . . . . . . 1 . . . . . . . . . . . . . . . . . Z-Imprinter (-6/Deep Caves) Combat | -11 -10 -10 -10 -9 -8 -7 -7 -7 -7 -6 -6 -6 -6 -6 -6 -5 -5 -5 -5 -5 -4 -4 -4 -4 -4 -4 -3 -3 -2 -2 -2 -1 -------- Run | Jun Mat Min Exi Min Mat Fac Low Low Dat Pro Fac Low Low Zio Dee Pro Fac Upp Upp War Pro Fac Ext Cet Arc Hub Res Tes Res Qua Sec Acc Damage Taken 9059 | . 451 . . 679 1957 . . . . 60 . 7 . . 578 . 656 165 . 390 80 234 351 78 . 60 34 13 650 40 1001 1575 Core 1241 | . 43 . . 187 150 . . . . 23 . . . . 43 . 146 55 . 5 . 13 . 18 . . . . 17 . 149 392 Absorbed by Shields 1925 | . . . . . . . . . . 21 . 3 . . 78 . 12 61 . 87 30 80 120 28 . 21 13 5 102 43 967 254 Redirected to Shielding 233 | . . . . . . . . . . . . . . . . . . . . . . . . . . . . . 108 . 38 87 Regen/Repaired (Parts) 298 | . . . . . . . . . . . . . . . . . . . . 29 . . . . . . . . . . 269 . Core Remaining (%) 79 | 100 . . . 8 72 . . . . 96 . . . . . 94 . . . . 79 . . . . 97 . 100 . . 81 67 Volleys Fired 420 | 12 61 . 1 20 135 . . . . . . . . . 1 . 14 . 1 . 2 4 3 15 . 1 1 60 8 29 32 20 Largest 2 | 2 2 . 2 2 2 . . . . . . . . . 1 . 1 . 1 . 1 1 1 1 . 1 1 1 1 1 1 1 Hottest 300 | 40 46 . 46 46 46 . . . . . . . . . 33 . 81 . 33 . 33 260 33 35 . 35 105 105 120 120 120 300 Shots Fired 647 | 24 122 . 2 38 270 . . . . . . . . . 1 . 14 . 1 . 2 4 3 15 . 1 1 60 8 29 32 20 Gun 469 | 24 122 . 2 36 268 . . . . . . . . . 1 . . . . . . . . 15 . 1 . . . . . . Cannon 155 | . . . . . . . . . . . . . . . . . 5 . . . . . . . . . 1 60 8 29 32 20 Launcher 21 | . . . . 2 . . . . . . . . . . . . 9 . 1 . 2 4 3 . . . . . . . . . Special 2 | . . . . . 2 . . . . . . . . . . . . . . . . . . . . . . . . . . . Kinetic 469 | 24 122 . 2 36 268 . . . . . . . . . 1 . . . . . . . . 15 . 1 . . . . . . Thermal 156 | . . . . . 2 . . . . . . . . . . . . . . . . 4 . . . . 1 60 8 29 32 20 Explosive 17 | . . . . 2 . . . . . . . . . . . . 9 . 1 . 2 . 3 . . . . . . . . . Electromagnetic 5 | . . . . . . . . . . . . . . . . . 5 . . . . . . . . . . . . . . . Robot Hit Streak 13 | 5 9 . . 8 13 . . . . . . . . . . . 3 . . . 1 2 . 2 . . . 6 3 3 . 4 Robot Miss Streak 5 | 2 5 . . 5 3 . . . . . . . . . . . 2 . . . 1 1 . 3 . . . 1 1 1 . 1 Penetration Max 1 | . . . . . . . . . . . . . . . . . . . . . . . . 1 . . . . . . . 1 Secondary Targets 4 | . 2 . . 1 1 . . . . . . . . . . . . . . . . . . . . . . . . . . . Max Gunslinging Chain 1 | . 1 . . 1 1 . . . . . . . . . . . . . . . . . . . . . . . . . . . Shots Hit Robots 390 | 15 80 . . 24 188 1 . 3 . 1 5 2 1 . 5 . 3 . . . 1 3 15 6 . 5 5 7 6 11 . 3 Core Hits 172 | 9 23 . . 13 80 . . 1 . . 1 2 1 . 3 . . . . . 6 3 9 5 . 7 1 2 1 4 . 1 Critical Kills 2 | . . . . . . . . . . . . . . . . . . . . . . . . 1 . . . . . . . 1 Critical Parts Destroyed 12 | . 1 . . . 3 . . . . . . . . . . . . . . . . . 2 3 . 1 . . . 1 . 1 Critical Strikes 15 | . 1 . . . 3 . . . . . . . . . . . . . . . . . 2 5 . 1 . . . 1 . 2 Destroy 10 | . 1 . . . 3 . . . . . . . . . . . . . . . . . . 4 . . . . . . . 2 Smash 5 | . . . . . . . . . . . . . . . . . . . . . . . 2 1 . 1 . . . 1 . . Melee Attacks 162 | . . . . . 3 17 4 13 . 6 8 26 4 3 10 6 2 . . . . 3 19 3 . 7 8 4 7 5 1 3 Impact 68 | . . . . . 3 10 . . . . . . . . . . . . . . . 3 14 3 . 7 8 4 7 5 1 3 Slashing 94 | . . . . . . 7 4 13 . 6 8 26 4 3 10 6 2 . . . . . 5 . . . . . . . . . Piercing . | . . . . . . . . . . . . . . . . . . . . . . . . . . . . . . . . . Sneak Attacks 33 | . . . . . . 1 . 3 . 1 2 2 1 . 1 . . . . . . . 9 . . 4 3 . 2 4 . . Combat Hostiles 1 | . . . . . . . . . . . . . . . 1 . . . . . . . . . . . . . . . . . Follow-up Attacks . | . . . . . . . . . . . . . . . . . . . . . . . . . . . . . . . . . Damage Inflicted 13197 | 219 1101 . . 422 2956 107 . 339 . 120 481 249 123 . 1345 . 111 . . . 331 385 1672 148 . 753 406 248 375 807 . 499 Guns 4615 | 199 1093 . . 374 2845 . . . . . . . . . . . . . . . . . . 104 . . . . . . . . Cannons 1235 | . . . . . . . . . . . . . . . . . 111 . . . . . . . . . . 248 83 352 . 441 Explosions 2275 | . . . . 42 . . . . . . . . . . 966 . . . . . 331 385 285 . . 266 . . . . . . Melee 4927 | . . . . . . 107 . 339 . 120 481 249 123 . 379 . . . . . . . 1387 44 . 487 406 . 292 455 . 58 Ramming 123 | 20 8 . . 6 89 . . . . . . . . . . . . . . . . . . . . . . . . . . . Kinetic 4615 | 199 1093 . . 374 2845 . . . . . . . . . . . . . . . . . . 104 . . . . . . . . Thermal 2497 | . . . . . 22 . . . . . . . . . 966 . . . . . . 385 . . . . . 248 83 352 . 441 Explosive 658 | . . . . 42 . . . . . . . . . . . . . . . . 331 . 285 . . . . . . . . . Electromagnetic 377 | . . . . . . . . . . . . . . . . . 111 . . . . . . . . 266 . . . . . . Impact 2853 | . . . . . . . . . . . . . . . . . . . . . . . 1111 44 . 487 406 . 292 455 . 58 Slashing 2074 | . . . . . . 107 . 339 . 120 481 249 123 . 379 . . . . . . . 276 . . . . . . . . . Piercing . | . . . . . . . . . . . . . . . . . . . . . . . . . . . . . . . . . Highest Corruption 6 | . . . . . . . . . . . . . . . . . . . . 6 6 . . . . . 2 2 . . . . Average Corruption 2 | . . . . . . . . . . . . . . . . . . . . 5 6 . . . . . 2 2 . . . . Corruption Purged . | . . . . . . . . . . . . . . . . . . . . . . . . . . . . . . . . . Corruption Blocked 15 | . . . . . . . . . . . . . . . . . . . . . . . . . . . . 15 . . . . Effects 7 | . . . . . . . . . . . . . . . . . . . . 1 3 . . . . . 1 2 . . . . Message Errors 1 | . . . . . . . . . . . . . . . . . . . . . 1 . . . . . . . . . . . Matter Fused 4 | . . . . . . . . . . . . . . . . . . . . 1 1 . . . . . . 2 . . . . Heat Flow Errors 1 | . . . . . . . . . . . . . . . . . . . . . 1 . . . . . . . . . . . Energy Discharges 1 | . . . . . . . . . . . . . . . . . . . . . . . . . . . 1 . . . . . Overload Shots . | . . . . . . . . . . . . . . . . . . . . . . . . . . . . . . . . . Overflow Damage 2529 | . . . . . 13 77 . 85 . 98 188 . . . 267 . . . . . 38 17 686 44 . 234 147 33 134 398 . 70 Projectiles 112 | . . . . . . . . . . . . . . . . . . . . . . . . . . . . 33 . 18 . 61 Explosions 325 | . . . . . . . . . . . . . . . 247 . . . . . 38 17 1 . . 22 . . . . . . Melee 2092 | . . . . . 13 77 . 85 . 98 188 . . . 20 . . . . . . . 685 44 . 212 147 . 134 380 . 9 Knockbacks 13 | . . . . . . . . . . . . . . . . . . . . . . . 5 1 . 1 3 . 1 2 . . Impact 13 | . . . . . . . . . . . . . . . . . . . . . . . 5 1 . 1 3 . 1 2 . . Kinetic . | . . . . . . . . . . . . . . . . . . . . . . . . . . . . . . . . . Secondary . | . . . . . . . . . . . . . . . . . . . . . . . . . . . . . . . . . Self-Inflicted Damage 542 | . . . . . . . . . . . . . . . 390 . 41 . . . . . . . . 82 . . . . . 29 Shots 4 | . . . . . . . . . . . . . . . 1 . 1 . . . . . . . . 1 . . . . . 1 Rammed 26 | 9 5 . . 3 9 . . . . . . . . . . . . . . . . . . . . . . . . . . . Targets Rammed 30 | 13 5 . . 3 9 . . . . . . . . . . . . . . . . . . . . . . . . . . . Kicked . | . . . . . . . . . . . . . . . . . . . . . . . . . . . . . . . . . Crushed 4 | 4 . . . . . . . . . . . . . . . . . . . . . . . . . . . . . . . . Highest Temperature 257 | . 18 . . 6 257 . . . . . 38 3 3 3 19 . 105 40 6 60 96 200 176 26 26 86 . . 63 . 201 198 Average Temperature 108 | . 9 . . 4 71 . . . . . 18 3 2 3 11 . 19 32 6 23 49 90 42 13 14 28 . . 34 . 187 180 Received Heat Transfer 1408 | . 189 . . 21 702 . . . . 15 . 4 . . 48 . 57 6 . 107 . 12 33 . . . 12 . 18 4 126 54 Effects 6 | . . . . . 1 . . . . . . . . . . . . . . . . . . . . . . . . . 5 . Energy Bleed 3 | . . . . . 1 . . . . . . . . . . . . . . . . . . . . . . . . . 2 . Interference 3 | . . . . . . . . . . . . . . . . . . . . . . . . . . . . . . . 3 . Siege Activations . | . . . . . . . . . . . . . . . . . . . . . . . . . . . . . . . . . Robots Corrupted 1 | . . . . . . . . . . . . . . . . . 1 . . . . . . . . . . . . . . . Combat Hostiles . | . . . . . . . . . . . . . . . . . . . . . . . . . . . . . . . . . Parts Fried 36 | . . . . . 2 . . . . . . . . . . . . . . . . . 11 3 . 3 5 . 2 9 . 1 Impact Corruptions 49 | . . . . . 1 . . . . . . . . . . . . . . . . . 18 1 . 6 7 . 5 10 . 1 Robots Melted 1 | . . . . . . . . . . . . . . . . . . . . . . 1 . . . . . . . . . . Combat Hostiles 1 | . . . . . . . . . . . . . . . . . . . . . . 1 . . . . . . . . . . Parts Melted 1 | . . . . . . . . . . . . . . . . . . . . . . . . . . . . 1 . . . . Heat Transferred 1183 | . . . . . 74 . . . . . . . . . . . . . . . . 480 . . . . . 259 74 259 . 37 Parts Sabotaged . | . . . . . . . . . . . . . . . . . . . . . . . . . . . . . . . . . Parts Stolen . | . . . . . . . . . . . . . . . . . . . . . . . . . . . . . . . . . Parts Stripped . | . . . . . . . . . . . . . . . . . . . . . . . . . . . . . . . . . Power Chain Reactions . | . . . . . . . . . . . . . . . . . . . . . . . . . . . . . . . . . Missiles Intercepted . | . . . . . . . . . . . . . . . . . . . . . . . . . . . . . . . . . Alert | -11 -10 -10 -10 -9 -8 -7 -7 -7 -7 -6 -6 -6 -6 -6 -6 -5 -5 -5 -5 -5 -4 -4 -4 -4 -4 -4 -3 -3 -2 -2 -2 -1 ------- Run | Jun Mat Min Exi Min Mat Fac Low Low Dat Pro Fac Low Low Zio Dee Pro Fac Upp Upp War Pro Fac Ext Cet Arc Hub Res Tes Res Qua Sec Acc Peak Influence 2657 | 40 255 58 . 155 440 305 . . . . 586 . . . . . 483 . . . . 232 785 616 246 927 601 679 1164 654 1879 2657 Initial 1127 | . 26 58 . . 13 148 . . . . 544 . . . . . . . . . . 69 100 413 246 79 486 337 381 654 348 1127 Average 314 | 18 117 58 . 34 217 219 . . . . 559 . . . . . 213 . . . . 155 517 497 237 156 524 489 894 516 983 1936 Maximum Alert Level 5 | . 1 . . . 2 1 . . . . 2 . . . . . 2 . . . . 1 3 2 1 3 2 2 4 2 5 5 Low Security (%) 50 | 100 89 100 . 100 38 44 . . . . . . . . . . 58 . . . . 51 6 . . 89 . . . . . . Level 1 19 | . 10 . . . 50 55 . . . . . . . . . . 25 . . . . 48 21 2 100 7 . 21 7 8 8 . Level 2 19 | . . . . . 11 . . . . . 100 . . . . . 15 . . . . . 47 97 . . 100 78 17 91 18 . Level 3 4 | . . . . . . . . . . . . . . . . . . . . . . . 23 . . 2 . . 55 . 28 . Level 4 2 | . . . . . . . . . . . . . . . . . . . . . . . . . . . . . 20 . 29 5 Level 5 . | . . . . . . . . . . . . . . . . . . . . . . . . . . . . . . . . . High Security . | . . . . . . . . . . . . . . . . . . . . . . . . . . . . . . . . . Max Security 2 | . . . . . . . . . . . . . . . . . . . . . . . . . . . . . . . 15 94 Squads Dispatched 46 | . 1 . . . 5 1 . . . . . . . . . . 3 . . . . 1 2 . . 3 . 2 2 2 10 14 Investigation 7 | . 1 . . . . . . . . . . . . . . . 2 . . . . . . . . . . . 2 1 1 . Extermination 2 | . . . . . . 1 . . . . . . . . . . . . . . . . . . . . . 1 . . . . Reinforcement 12 | . . . . . 2 . . . . . . . . . . . 1 . . . . 1 1 . . 2 . . . 1 3 1 Assault 22 | . . . . . . . . . . . . . . . . . . . . . . . 1 . . 1 . 1 . . 6 13 Garrison 3 | . . . . . 3 . . . . . . . . . . . . . . . . . . . . . . . . . . . Intercept . | . . . . . . . . . . . . . . . . . . . . . . . . . . . . . . . . . Searches Triggered 1 | . . . . . . . . . . . . . . . . . . . . . . . . . . . . . . . 1 . Data Miner Redirects 2 | . . . . . . . . . . . . . . . . . 1 . . . . . . . . . . 1 . . . . Construction Impeded . | . . . . . . . . . . . . . . . . . . . . . . . . . . . . . . . . . Haulers Reinforced . | . . . . . . . . . . . . . . . . . . . . . . . . . . . . . . . . . Active Scanning Responses . | . . . . . . . . . . . . . . . . . . . . . . . . . . . . . . . . . Cargo Convoy Interrupts . | . . . . . . . . . . . . . . . . . . . . . . . . . . . . . . . . . Stealth | -11 -10 -10 -10 -9 -8 -7 -7 -7 -7 -6 -6 -6 -6 -6 -6 -5 -5 -5 -5 -5 -4 -4 -4 -4 -4 -4 -3 -3 -2 -2 -2 -1 --------- Run | Jun Mat Min Exi Min Mat Fac Low Low Dat Pro Fac Low Low Zio Dee Pro Fac Upp Upp War Pro Fac Ext Cet Arc Hub Res Tes Res Qua Sec Acc Distress Signals 36 | . 1 . . . 2 . . . . . 1 . . . . . . . . . . 2 1 1 . 5 2 4 4 . 3 10 Communications Jammed . | . . . . . . . . . . . . . . . . . . . . . . . . . . . . . . . . . Distress Signals . | . . . . . . . . . . . . . . . . . . . . . . . . . . . . . . . . . Times Spotted 509 | . 22 . . 11 39 3 . 3 . 5 3 1 . . 7 . 26 7 3 25 7 13 28 5 . 11 8 23 47 12 111 89 Peak Tracking Total 61 | . 5 . 9 3 6 5 . 5 . 3 4 1 . . 3 . 11 6 3 19 7 9 7 5 . 21 8 14 20 6 61 40 Tactical Retreats 43 | . . . . . 1 2 . 2 . 2 . 1 . . . . 4 1 . . . . 3 . . . . 1 8 2 10 6 Traps | -11 -10 -10 -10 -9 -8 -7 -7 -7 -7 -6 -6 -6 -6 -6 -6 -5 -5 -5 -5 -5 -4 -4 -4 -4 -4 -4 -3 -3 -2 -2 -2 -1 ------- Run | Jun Mat Min Exi Min Mat Fac Low Low Dat Pro Fac Low Low Zio Dee Pro Fac Upp Upp War Pro Fac Ext Cet Arc Hub Res Tes Res Qua Sec Acc Traps Triggered 13 | . . . . . . 1 . . . . . . . . . . 2 . . . . 1 2 . . . 2 . 2 . . 3 Indirectly . | . . . . . . . . . . . . . . . . . . . . . . . . . . . . . . . . . Trap Hack Attempts . | . . . . . . . . . . . . . . . . . . . . . . . . . . . . . . . . . Triggered . | . . . . . . . . . . . . . . . . . . . . . . . . . . . . . . . . . Disarmed . | . . . . . . . . . . . . . . . . . . . . . . . . . . . . . . . . . Reprogrammed . | . . . . . . . . . . . . . . . . . . . . . . . . . . . . . . . . . Reused . | . . . . . . . . . . . . . . . . . . . . . . . . . . . . . . . . . Traps Extracted . | . . . . . . . . . . . . . . . . . . . . . . . . . . . . . . . . . Installed . | . . . . . . . . . . . . . . . . . . . . . . . . . . . . . . . . . Triggered 11 | . . . . . . . . . . 1 . . . . . 1 . . 1 8 . . . . . . . . . . . . Machines | -11 -10 -10 -10 -9 -8 -7 -7 -7 -7 -6 -6 -6 -6 -6 -6 -5 -5 -5 -5 -5 -4 -4 -4 -4 -4 -4 -3 -3 -2 -2 -2 -1 ---------- Run | Jun Mat Min Exi Min Mat Fac Low Low Dat Pro Fac Low Low Zio Dee Pro Fac Upp Upp War Pro Fac Ext Cet Arc Hub Res Tes Res Qua Sec Acc Machines Disabled 53 | . 1 . 2 . 1 . . . . 4 . . . . 2 . 2 . . . . . 2 1 . 18 . 6 . 3 8 3 Max in Single Turn 18 | . 1 . 2 . 1 . . . . . . . . . 1 . 2 . . . . . 1 . . 18 . 1 . 1 1 2 Garrison Access 4 | . . . . . . 1 . . . . . . . . . . . . . . . 1 . . . 2 . . . . . . Network Hub 1 | . . . . . . . . . . . . . . . . . . . . . . . . . . 1 . . . . . . Energy Cycler 2 | . . . . . . . . . . . . . . . . . . . . . . . 1 . . . . . . . . 1 Machines Repaired . | . . . . . . . . . . . . . . . . . . . . . . . . . . . . . . . . . Machines Sabotaged . | . . . . . . . . . . . . . . . . . . . . . . . . . . . . . . . . . Overloaded Fab Kills . | . . . . . . . . . . . . . . . . . . . . . . . . . . . . . . . . . Hacking | -11 -10 -10 -10 -9 -8 -7 -7 -7 -7 -6 -6 -6 -6 -6 -6 -5 -5 -5 -5 -5 -4 -4 -4 -4 -4 -4 -3 -3 -2 -2 -2 -1 --------- Run | Jun Mat Min Exi Min Mat Fac Low Low Dat Pro Fac Low Low Zio Dee Pro Fac Upp Upp War Pro Fac Ext Cet Arc Hub Res Tes Res Qua Sec Acc Machines Accessed 67 | . 5 . 2 . . 6 . 1 3 . 4 1 1 . . . 5 . . 2 . 2 4 1 . 6 6 5 2 4 7 . Terminals 46 | . 5 . . . . 3 . . . . 3 . . . . . 3 . . . . 1 4 1 . 4 6 4 2 4 6 . Fabricators 1 | . . . . . . . . . . . . . . . . . 1 . . . . . . . . . . . . . . . Repair Stations 1 | . . . . . . . . . . . . . . . . . 1 . . . . . . . . . . . . . . . Recycling Units 2 | . . . . . . 1 . . . . 1 . . . . . . . . . . . . . . . . . . . . . Scanalyzers 1 | . . . . . . . . . . . . . . . . . . . . . . . . . . . . 1 . . . . Garrison Access 6 | . . . . . . 2 . . . . . . . . . . . . . . . 1 . . . 2 . . . . 1 . Total Hacks 195 | . 18 . 2 . . 20 . 1 23 . 8 1 1 . . . 15 . . 9 . 3 9 1 . 14 11 14 9 14 22 . Successful 86 | . 7 . 2 . . 10 . 1 23 . 1 1 1 . . . 4 . . 9 . 2 2 . . 5 1 4 . 5 8 . Failed 108 | . 10 . . . . 10 . . . . 7 . . . . . 11 . . . . 1 7 1 . 9 10 10 9 9 14 . Catastrophic 35 | . 3 . . . . 1 . . . . 4 . . . . . 4 . . . . . 2 1 . 2 6 2 3 3 4 . Database Lockouts 1 | . 1 . . . . . . . . . . . . . . . . . . . . . . . . . . . . . . . Manual 70 | . 11 . 1 . . 13 . . . . 3 . . 5 . . 9 . . 1 . . 5 1 . 4 2 9 4 1 1 . Terminals 140 | . 18 . . . . 16 . . . . 7 . . . . . 11 . . . . 2 9 1 . 9 11 13 9 14 20 . Fabricators 2 | . . . . . . . . . . . . . . . . . 2 . . . . . . . . . . . . . . . Repair Stations 2 | . . . . . . . . . . . . . . . . . 2 . . . . . . . . . . . . . . . Recycling Units 3 | . . . . . . 2 . . . . 1 . . . . . . . . . . . . . . . . . . . . . Scanalyzers 1 | . . . . . . . . . . . . . . . . . . . . . . . . . . . . 1 . . . . Garrison Access 10 | . . . . . . 2 . . . . . . . . . . . . . . . 1 . . . 5 . . . . 2 . Terminal Hacks 77 | . 6 . 2 . . 8 . 1 23 . 1 1 1 . . . 3 . . 9 . 1 2 . . 3 1 2 . 5 8 . Record 17 | . . . 1 . . . . . 6 . . . . . . . . . . 9 . . . . . . . . . 1 . . Part Schematic 11 | . 2 . . . . . . . 9 . . . . . . . . . . . . . . . . . . . . . . . Robot Schematic 6 | . . . . . . . . . 5 . . . . . . . . . . . . . . . . . . . . . 1 . Robot Analysis 3 | . 1 . . . . 2 . . . . . . . . . . . . . . . . . . . . . . . . . . Prototype ID Bank 4 | . . . . . . . . . 3 . . . . . . . . . . . . . . . . . . . . 1 . . Open Door 5 | . . . . . . . . 1 . . . 1 1 . . . . . . . . . . . . . . . . . 2 . Branch Access Points 5 | . . . . . . 1 . . . . 1 . . . . . 1 . . . . 1 . . . . 1 . . . . . Emergency Access Points 1 | . . . . . . . . . . . . . . . . . . . . . . . . . . . . 1 . . . . Terminal Index 2 | . 1 . . . . . . . . . . . . . . . . . . . . . . . . 1 . . . . . . Alert Level 1 | . . . . . . . . . . . . . . . . . . . . . . . 1 . . . . . . . . . Unreport Threat 3 | . . . . . . . . . . . . . . . . . . . . . . . 1 . . . . . . 2 . . Locate Traps 5 | . 1 . . . . 1 . . . . . . . . . . . . . . . . . . . . . . . 1 2 . Hauler Manifests 2 | . . . . . . 1 . . . . . . . . . . . . . . . . . . . . . . . . 1 . Zone Layout 10 | . 1 . . . . 3 . . . . . . . . . . 2 . . . . . . . . 2 . 1 . . 1 . EX-Prototype ID Bank 1 | . . . 1 . . . . . . . . . . . . . . . . . . . . . . . . . . . . . Activate Exoskeleton 1 | . . . . . . . . . . . . . . . . . . . . . . . . . . . . . . . 1 . Fabricator Hacks . | . . . . . . . . . . . . . . . . . . . . . . . . . . . . . . . . . Repair Station Hacks . | . . . . . . . . . . . . . . . . . . . . . . . . . . . . . . . . . Recycling Unit Hacks . | . . . . . . . . . . . . . . . . . . . . . . . . . . . . . . . . . Scanalyzer 1 | . . . . . . . . . . . . . . . . . . . . . . . . . . . . 1 . . . . Insert Component 1 | . . . . . . . . . . . . . . . . . . . . . . . . . . . . 1 . . . . Garrison Access Hacks 3 | . . . . . . 1 . . . . . . . . . . . . . . . 1 . . . 1 . . . . . . Seal Access 3 | . . . . . . 1 . . . . . . . . . . . . . . . 1 . . . 1 . . . . . . Unauthorized Hacks 5 | . 1 . . . . 1 . . . . . . . . . . 1 . . . . . . . . 1 . 1 . . . . Terminals 4 | . 1 . . . . . . . . . . . . . . . 1 . . . . . . . . 1 . 1 . . . . Assimilate 1 | . . . . . . . . . . . . . . . . . . . . . . . . . . . . 1 . . . . Botnet 1 | . . . . . . . . . . . . . . . . . 1 . . . . . . . . . . . . . . . Disrupt 1 | . . . . . . . . . . . . . . . . . . . . . . . . . . 1 . . . . . . Search 1 | . 1 . . . . . . . . . . . . . . . . . . . . . . . . . . . . . . . Fabricators . | . . . . . . . . . . . . . . . . . . . . . . . . . . . . . . . . . Repair Stations . | . . . . . . . . . . . . . . . . . . . . . . . . . . . . . . . . . Recycling Units 1 | . . . . . . 1 . . . . . . . . . . . . . . . . . . . . . . . . . . Mask 1 | . . . . . . 1 . . . . . . . . . . . . . . . . . . . . . . . . . . Scanalyzers . | . . . . . . . . . . . . . . . . . . . . . . . . . . . . . . . . . Garrison Access . | . . . . . . . . . . . . . . . . . . . . . . . . . . . . . . . . . Data Cores Recovered 2 | . 1 . . . . . . . . . . . . . . . . . . . . . . . . . 1 . . . . . Used 1 | . 1 . . . . . . . . . . . . . . . . . . . . . . . . . . . . . . . Hacking Detections 51 | . 5 . . . . 5 . . . . 4 . . . . . 5 . . . . 1 4 2 . 5 6 4 2 3 5 . Full Trace Events 6 | . . . . . . . . . . . . . . . . . 2 . . . . . . . . . . . 2 1 1 . Feedback Events . | . . . . . . . . . . . . . . . . . . . . . . . . . . . . . . . . . Feedback Blocked . | . . . . . . . . . . . . . . . . . . . . . . . . . . . . . . . . . Robot Schematics Acquired 8 | . . . . . . . . . 5 . . . . 2 . . . . . . . . . . . . . . . . 1 . Robots Built . | . . . . . . . . . . . . . . . . . . . . . . . . . . . . . . . . . Authchips . | . . . . . . . . . . . . . . . . . . . . . . . . . . . . . . . . . Time . | . . . . . . . . . . . . . . . . . . . . . . . . . . . . . . . . . Total Robot Build Rating . | . . . . . . . . . . . . . . . . . . . . . . . . . . . . . . . . . Part Schematics Acquired 25 | . 2 . . . . . . . 9 . . . . 14 . . . . . . . . . . . . . . . . . . Parts Built . | . . . . . . . . . . . . . . . . . . . . . . . . . . . . . . . . . Authchips . | . . . . . . . . . . . . . . . . . . . . . . . . . . . . . . . . . Time . | . . . . . . . . . . . . . . . . . . . . . . . . . . . . . . . . . Total Part Build Rating . | . . . . . . . . . . . . . . . . . . . . . . . . . . . . . . . . . Parts Repaired . | . . . . . . . . . . . . . . . . . . . . . . . . . . . . . . . . . Time . | . . . . . . . . . . . . . . . . . . . . . . . . . . . . . . . . . Parts Recycled . | . . . . . . . . . . . . . . . . . . . . . . . . . . . . . . . . . Recycled Matter . | . . . . . . . . . . . . . . . . . . . . . . . . . . . . . . . . . Retrieved Matter . | . . . . . . . . . . . . . . . . . . . . . . . . . . . . . . . . . Retrieved Components . | . . . . . . . . . . . . . . . . . . . . . . . . . . . . . . . . . Parts Scanalyzed . | . . . . . . . . . . . . . . . . . . . . . . . . . . . . . . . . . Part Schematics Acquired . | . . . . . . . . . . . . . . . . . . . . . . . . . . . . . . . . . Parts Damaged . | . . . . . . . . . . . . . . . . . . . . . . . . . . . . . . . . . Bothacking | -11 -10 -10 -10 -9 -8 -7 -7 -7 -7 -6 -6 -6 -6 -6 -6 -5 -5 -5 -5 -5 -4 -4 -4 -4 -4 -4 -3 -3 -2 -2 -2 -1 ------------ Run | Jun Mat Min Exi Min Mat Fac Low Low Dat Pro Fac Low Low Zio Dee Pro Fac Upp Upp War Pro Fac Ext Cet Arc Hub Res Tes Res Qua Sec Acc Used RIF Installer . | . . . . . . . . . . . . . . . . . . . . . . . . . . . . . . . . . Robots Hacked . | . . . . . . . . . . . . . . . . . . . . . . . . . . . . . . . . . Non-combat . | . . . . . . . . . . . . . . . . . . . . . . . . . . . . . . . . . Combat . | . . . . . . . . . . . . . . . . . . . . . . . . . . . . . . . . . Robot Hacks Applied . | . . . . . . . . . . . . . . . . . . . . . . . . . . . . . . . . . Relay Couplers Released 4 | . . . . . . . . . . . . . . . . . . . . . . . . . . 4 . . . . . . Machine Destruction 4 | . . . . . . . . . . . . . . . . . . . . . . . . . . 4 . . . . . . Fabnet Peak Effective % . | . . . . . . . . . . . . . . . . . . . . . . . . . . . . . . . . . Robots Rewired 4 | . . . . . . . . . . . . . . . . . . . . . . . 4 . . . . . . . . . Allies Hacked . | . . . . . . . . . . . . . . . . . . . . . . . . . . . . . . . . . Hacks Repelled . | . . . . . . . . . . . . . . . . . . . . . . . . . . . . . . . . . Allies | -11 -10 -10 -10 -9 -8 -7 -7 -7 -7 -6 -6 -6 -6 -6 -6 -5 -5 -5 -5 -5 -4 -4 -4 -4 -4 -4 -3 -3 -2 -2 -2 -1 -------- Run | Jun Mat Min Exi Min Mat Fac Low Low Dat Pro Fac Low Low Zio Dee Pro Fac Upp Upp War Pro Fac Ext Cet Arc Hub Res Tes Res Qua Sec Acc Total Allies 29 | . . 1 . 2 . . . . . 1 . . . 5 . . . . . . . . 11 4 . . 3 1 . . 1 . Largest Group 8 | . . 1 . 2 . . . . . 1 . . . 5 5 . . . . . . . 8 6 4 3 3 1 . . 1 1 Highest-Rated Group 1195 | . . 31 . 42 . . . . . 96 . . . 274 274 . . . . . . . 461 568 328 288 138 26 . . 1195 1195 Highest-Rated Ally 1195 | . . 31 . 31 . . . . . 96 . . . 96 96 . . . . . . . 159 159 96 96 46 26 . . 1195 1195 Total Orders . | . . . . . . . . . . . . . . . . . . . . . . . . . . . . . . . . . Ally Attacks 253 | . . . . 19 . . . . . 23 . . . . 61 . . . . . . . 73 51 1 18 . . . . 2 5 Total Damage 8071 | . . . . 352 . . . . . 1052 . . . . 1855 . . . . . . . 2516 1479 . 495 . . . . 201 121 Kills 49 | . . . . 3 . . . . . 7 . . . . 13 . . . . . . . 17 5 . 3 . . . . . 1 Allies Corrupted . | . . . . . . . . . . . . . . . . . . . . . . . . . . . . . . . . . Allies Melted . | . . . . . . . . . . . . . . . . . . . . . . . . . . . . . . . . . Intel | -11 -10 -10 -10 -9 -8 -7 -7 -7 -7 -6 -6 -6 -6 -6 -6 -5 -5 -5 -5 -5 -4 -4 -4 -4 -4 -4 -3 -3 -2 -2 -2 -1 ------- Run | Jun Mat Min Exi Min Mat Fac Low Low Dat Pro Fac Low Low Zio Dee Pro Fac Upp Upp War Pro Fac Ext Cet Arc Hub Res Tes Res Qua Sec Acc Robot Analysis Total 3 | . 1 . . . . 2 . . . . . . . . . . . . . . . . . . . . . . . . . . Derelict Logs Recovered 13 | . . 1 . 1 . . . 1 . 2 . . . 2 . 1 . 2 1 . 2 . . . . . . . . . . . Drone Launches . | . . . . . . . . . . . . . . . . . . . . . . . . . . . . . . . . . Drone Recoveries . | . . . . . . . . . . . . . . . . . . . . . . . . . . . . . . . . . Exploration | -11 -10 -10 -10 -9 -8 -7 -7 -7 -7 -6 -6 -6 -6 -6 -6 -5 -5 -5 -5 -5 -4 -4 -4 -4 -4 -4 -3 -3 -2 -2 -2 -1 ------------- Run | Jun Mat Min Exi Min Mat Fac Low Low Dat Pro Fac Low Low Zio Dee Pro Fac Upp Upp War Pro Fac Ext Cet Arc Hub Res Tes Res Qua Sec Acc Turns Passed 11581 | 341 615 348 874 1494 1749 328 69 244 19 137 106 487 62 352 1003 99 234 73 173 239 66 70 500 187 44 127 126 367 292 247 321 188 Spaces Moved 17797 | 169 206 204 403 583 697 803 241 760 81 360 362 259 239 966 934 457 925 425 583 714 299 225 930 179 41 369 556 867 1275 786 1062 837 Core 2 | 2 . . . . . . . . . . . . . . . . . . . . . . . . . . . . . . . . Treads 2248 | 167 206 204 378 583 697 13 . . . . . . . . . . . . . . . . . . . . . . . . . . Legs 25 | . . . 25 . . . . . . . . . . . . . . . . . . . . . . . . . . . . . Wheels . | . . . . . . . . . . . . . . . . . . . . . . . . . . . . . . . . . Hover . | . . . . . . . . . . . . . . . . . . . . . . . . . . . . . . . . . Flight 15522 | . . . . . . 790 241 760 81 360 362 259 239 966 934 457 925 425 583 714 299 225 930 179 41 369 556 867 1275 786 1062 837 Fastest Speed 8 | 50 160 160 45 240 156 23 23 23 23 23 20 20 20 20 10 10 10 10 10 10 17 11 8 10 10 10 14 17 9 18 17 9 Average Speed 38 | 158 160 160 213 240 170 25 23 23 23 23 20 20 20 20 22 14 10 10 10 10 17 13 11 10 10 10 14 17 12 18 17 13 Slowest Speed 240 | 160 160 160 240 240 240 158 23 23 23 23 20 20 20 20 89 20 77 10 20 20 17 84 85 10 10 14 17 17 18 18 18 17 Overloaded Moves 251 | . . . 22 . . . . . . . . . . . . . . . . . . . 12 . . . . . 80 . . 137 Propulsion Burnouts . | . . . . . . . . . . . . . . . . . . . . . . . . . . . . . . . . . Robots Hopped 111 | . . . . . . 2 . . . 1 . . . . . . 7 1 . 3 1 2 7 . . 9 2 17 14 3 20 22 Cave-ins Triggered . | . . . . . . . . . . . . . . . . . . . . . . . . . . . . . . . . . Teleports 2 | . . . . . . . . . . . . . . . . . . . . . . . . . . . . . . 1 . 1 Exploration Rate (%) 51 | 8 35 44 70 92 45 26 45 81 70 49 13 42 40 86 55 59 23 50 64 77 62 10 80 49 62 40 21 83 30 73 77 35 Regions Visited 32 Branch Regions 23 Pre-discovered Areas 8 | . . 1 1 . . . . . 1 1 . . . 1 . 1 . . . 2 . . . . . . . . . . . . Known Exits Taken 18 | . . . . . 1 1 1 1 1 1 1 1 1 1 1 1 1 . . . . 1 . . . . 1 . 1 1 1 . Unknown Exits Taken 14 | 1 1 1 1 1 . . . . . . . . . . . . . 1 1 1 1 . 1 1 1 1 . 1 . . . . Scrap Searched 14 | . . . . 2 . . 2 1 . 2 . . 1 4 . . . . 1 . 1 . . . . . . . . . . . Spaces Dug 153 | . . . . . 3 15 4 10 . 4 3 20 3 . . 6 13 . . . . 3 . . . 2 3 25 5 8 16 10 Terrain Destroyed 532 | . . . . 8 3 15 4 10 . 4 3 20 3 . . 6 90 . 13 . 15 12 18 . . 163 3 49 7 17 23 46 Melee 82 | . . . . . 3 15 4 10 . 4 3 20 3 . . 6 1 . . . . 3 . . . 2 2 3 2 1 . . Projectile 125 | . . . . . . . . . . . . . . . . . . . . . . . . . . . 1 46 5 16 23 34 AOE 325 | . . . . 8 . . . . . . . . . . . . 89 . 13 . 15 9 18 . . 161 . . . . . 12 Terrain Rammed . | . . . . . . . . . . . . . . . . . . . . . . . . . . . . . . . . . Walls Destroyed . | . . . . . . . . . . . . . . . . . . . . . . . . . . . . . . . . . Machines Disabled . | . . . . . . . . . . . . . . . . . . . . . . . . . . . . . . . . . Actions | -11 -10 -10 -10 -9 -8 -7 -7 -7 -7 -6 -6 -6 -6 -6 -6 -5 -5 -5 -5 -5 -4 -4 -4 -4 -4 -4 -3 -3 -2 -2 -2 -1 --------- Run | Jun Mat Min Exi Min Mat Fac Low Low Dat Pro Fac Low Low Zio Dee Pro Fac Upp Upp War Pro Fac Ext Cet Arc Hub Res Tes Res Qua Sec Acc Total 21468 | 208 375 226 418 643 1027 902 245 802 80 399 379 640 244 1117 1704 477 1042 456 697 882 314 253 1282 328 80 436 587 1005 1366 849 1140 865 Wait 2400 | . 71 23 . 28 79 21 1 24 . 30 3 354 . 148 713 4 67 16 101 129 4 5 206 121 40 45 7 55 53 13 27 12 Move 17557 | 168 205 203 402 582 696 798 240 759 80 357 361 258 238 965 933 456 910 422 582 707 296 220 915 178 40 353 551 836 1248 779 1021 798 Hop 96 | . . . . . . 2 . . . 1 . . . . . . 7 1 . 3 1 2 7 . . 6 2 13 12 3 20 16 Pick Up 161 | 8 12 . 5 4 34 6 . 2 . . 1 . 1 . 8 2 11 6 5 11 5 4 9 . . 2 3 5 6 5 3 3 Fast Attach 124 | 5 2 . . . 9 4 . . . . 1 . . . 13 2 6 . 1 7 . 1 9 4 . 5 4 9 16 4 21 1 Attach 85 | 2 1 . 2 5 14 14 . . . . 2 . . . 1 1 7 2 1 3 1 6 3 1 . 1 4 4 2 2 1 5 Detach 42 | . 1 . . . 3 6 . . . . 1 . . . . 1 6 1 2 3 1 2 2 2 . . 3 4 2 . . 2 Swap 76 | . 6 . 3 1 19 3 . 2 . 4 1 2 . 1 6 2 1 2 . 1 . 2 6 . . 6 . 2 3 2 . 1 Drop 211 | . 11 . 5 . 26 20 . 2 . 1 1 . 1 . 19 3 11 6 4 18 4 2 14 4 . 10 4 13 9 7 14 2 Fire 420 | 12 61 . 1 20 135 . . . . . . . . . 1 . 14 . 1 . 2 4 3 15 . 1 1 60 8 29 32 20 Melee 162 | . . . . . 3 17 4 13 . 6 8 26 4 3 10 6 2 . . . . 3 19 3 . 7 8 4 7 5 1 3 Ram . | . . . . . . . . . . . . . . . . . . . . . . . . . . . . . . . . . Kick . | . . . . . . . . . . . . . . . . . . . . . . . . . . . . . . . . . Crush 30 | 13 5 . . 3 9 . . . . . . . . . . . . . . . . . . . . . . . . . . . Escape Stasis 69 | . . . . . . 11 . . . . . . . . . . . . . . . 2 54 . . . . . . . . 2 Rewire 35 | . . . . . . . . . . . . . . . . . . . . . . . 35 . . . . . . . . . Trap . | . . . . . . . . . . . . . . . . . . . . . . . . . . . . . . . . . Miscellaneous . | . . . . . . . . . . . . . . . . . . . . . . . . . . . . . . . . . Route ------- -11/Junkyard -10/Materials -10/Mines -10/Exiles -9/Mines (discovered 2 exits: [*Mat x2]) -8/Materials (discovered 3 exits: *Fac x2 / [*Sto]) -7/Factory (discovered 2 exits: *Low x2) -7/Lower Caves -7/Lower Caves -7/Data Miner -6/Proximity Caves -6/Factory (discovered 3 exits: Fac / *Low x2) -6/Lower Caves -6/Lower Caves -6/Zion (discovered 2 exits: *Dee / [*Pro]) -6/Deep Caves -5/Proximity Caves -5/Factory (discovered 2 exits: *Upp x2) -5/Upper Caves -5/Upper Caves -5/Warlord -4/Proximity Caves -4/Factory (discovered 5 exits: Upp x2 / *Ext x2 / Arm) -4/Extension (discovered 2 exits: *Res / *Cet) -4/Cetus -4/Archives -4/Hub_04(d) (discovered 3 exits: *Res x3) -3/Research (discovered 2 exits: *Tes x2) -3/Testing -2/Research (discovered 2 exits: *Acc / *Qua) -2/Quarantine -2/Section 7 -1/Access Tau Ceti IV Orbit History --------- Turn | Location | Event 61 | -11/Junkyard | Discovered new exit (range 16) 342 | -11/Junkyard | Entered Materials 372 | -10/Materials | Build established: Mutant 493 | -10/Materials | Central database locked down 493 | -10/Materials | Discovered new exit (range 17) 957 | -10/Materials | Entered Mines 960 | -10/Mines | Received a Mining Laser from a helpful Derelict 1069 | -10/Mines | Learned location of Storage (-8) 1200 | -10/Mines | Deemed a non-threat by the Exiles lab entrance 1277 | -10/Mines | Discovered new exit (range 5) 1305 | -10/Mines | Entered Exiles 1345 | -10/Exiles | Met 8R-AWN 1371 | -10/Exiles | Met EX-HEX 1470 | -10/Exiles | Met EX-DEC 1537 | -10/Exiles | Learned location of Zion (-6) 1801 | -10/Exiles | Met EX-BIN 1893 | -10/Exiles | Aligned with FarCom system 1895 | -10/Exiles | Given EX-Vault access code 1950 | -10/Exiles | Opened EX-Vault 1967 | -10/Exiles | Found Potential Leg 1970 | -10/Exiles | Found Potential Leg 1979 | -10/Exiles | Found Chronowheel 2030 | -10/Exiles | Warned to stay clear of 0b10 Research branches 2164 | -10/Exiles | Attacked by the Exiles 2172 | -10/Exiles | Discovered new exit (range 10) 2179 | -10/Exiles | Entered Mines 2405 | -9/Mines | Discovered new exit (range 8) 2966 | -9/Mines | Assembled infested the area 2971 | -9/Mines | Assisted by a Guerilla fighting off Assembled 3325 | -9/Mines | Discovered new exit (range 7) 3538 | -9/Mines | Core integrity fell below 50% 3540 | -9/Mines | Core integrity fell below 20% 3572 | -9/Mines | Lost 6 parts (1p2n1u2w) 3673 | -9/Mines | Entered Materials 3673 | -8/Materials | Evolved 4 slots: Propulsion x2, Utility x2 3674 | -8/Materials | Identified exit to Factory 3680 | -8/Materials | Discovered new exit (range 16) 4275 | -8/Materials | Garrison activated, responded to threat 4350 | -8/Materials | Destroyed 8 combat bots 4521 | -8/Materials | Lost 5 parts (1n3u1w) 4606 | -8/Materials | Discovered exit to Factory (range 4) 4663 | -8/Materials | Build established: Scavenger-Mutant 5422 | -8/Materials | Entered Factory 5422 | -7/Factory | Evolved 2 slots: Propulsion x1, Utility x1 5570 | -7/Factory | Identified exit to Lower Caves 5750 | -7/Factory | Entered Lower Caves 5759 | -7/Lower Caves | Build established: Scavenger-Sprinter 5781 | -7/Lower Caves | Encountered a Warlord checkpoint 5816 | -7/Lower Caves | Discovered new exit (range 10) 5818 | -7/Lower Caves | Identified exit to Lower Caves 5819 | -7/Lower Caves | Entered another Lower Caves area 6012 | -7/Lower Caves | Spotted B-75 Beast 6045 | -7/Lower Caves | Discovered new exit (range 12) 6047 | -7/Lower Caves | Identified exit to Data Miner 6063 | -7/Lower Caves | Entered Data Miner 6063 | -7/Data Miner | Discovered new exit (range 6) 6068 | -7/Data Miner | Met Data Miner 6072 | -7/Data Miner | Learned location of Section 7 (-2) 6072 | -7/Data Miner | Acquired the access code to Warlord's prototype stash 6076 | -7/Data Miner | Received God Mode back door access code from Data Miner 6082 | -7/Data Miner | Identified exit to Proximity Caves 6082 | -7/Data Miner | Entered Proximity Caves 6085 | -6/Proximity Caves | Spotter reported a threat 6085 | -6/Proximity Caves | Spotter reported a threat 6100 | -6/Proximity Caves | Escorted by Enhanced Grunt 6149 | -6/Proximity Caves | Spotted B-75 Beast 6160 | -6/Proximity Caves | Spotter reported a threat 6191 | -6/Proximity Caves | Discovered new exit (range 15) 6205 | -6/Proximity Caves | Learned location of 2 exits from Factory 6215 | -6/Proximity Caves | Identified exit to Factory 6219 | -6/Proximity Caves | Entered Factory 6219 | -6/Factory | Evolved 2 slots: Power x1, Propulsion x1 6220 | -6/Factory | Identified exit to Lower Caves 6221 | -6/Factory | Identified exit to Factory 6325 | -6/Factory | Entered Lower Caves 6327 | -6/Lower Caves | Attracted the attention of an 0b10 checkpoint 6359 | -6/Lower Caves | Encountered a Warlord checkpoint 6805 | -6/Lower Caves | Discovered new exit (range 13) 6809 | -6/Lower Caves | Identified exit to Lower Caves 6812 | -6/Lower Caves | Entered another Lower Caves area 6862 | -6/Lower Caves | Discovered new exit (range 13) 6873 | -6/Lower Caves | Identified exit to Zion 6874 | -6/Lower Caves | Entered Zion 6888 | -6/Zion | Discovered new exit (range 15) 6921 | -6/Zion | Given A8's code to call for help 6925 | -6/Zion | Learned location of Warlord (-5) 6931 | -6/Zion | Learned Factory terminal intel 6941 | -6/Zion | Acquired unknown access codes intercepted by a Zionite 6946 | -6/Zion | Learned Factory interactive machine intel 6953 | -6/Zion | Gained Derelict followers 6997 | -6/Zion | Given the Hacking Drone Bay 7074 | -6/Zion | Opened final containment barrier to the Deep Caves 7078 | -6/Zion | Discovered new exit (range 3) 7078 | -6/Zion | Saw the warning signs outside the Deep Caves entrance 7084 | -6/Zion | Enhanced Grunt warped into view, answering call for help 7085 | -6/Zion | Enhanced Grunt warped into view, answering call for help 7090 | -6/Zion | Identified exit to Deep Caves 7226 | -6/Zion | Entered Deep Caves 7226 | -6/Deep Caves | Accompanied by 5 allies 7333 | -6/Deep Caves | Attacked by Z-Imprinter 7346 | -6/Deep Caves | Allies destroyed Z-Imprinter 7359 | -6/Deep Caves | Found Prototype Device 7359 | -6/Deep Caves | Identified Zio. Metafield Generator 7465 | -6/Deep Caves | Z-Facility disabled 7904 | -6/Deep Caves | Found Prototype Protection 7904 | -6/Deep Caves | Identified Zio. Weapon Casing 8216 | -6/Deep Caves | Discovered new exit (range 7) 8217 | -6/Deep Caves | Identified exit to Proximity Caves 8229 | -6/Deep Caves | Entered Proximity Caves 8236 | -5/Proximity Caves | Found Alien Artifact 8236 | -5/Proximity Caves | Identified Core Expander 8236 | -5/Proximity Caves | Installed Core Expander, added new Power slot 8322 | -5/Proximity Caves | Spotted B-75 Beast 8328 | -5/Proximity Caves | Discovered exit to Factory (range 5) 8328 | -5/Proximity Caves | Entered Factory 8328 | -5/Factory | Evolved 2 slots: Propulsion x1, Utility x1 8329 | -5/Factory | Loaded intel: 52 interactive machine locations 8330 | -5/Factory | Loaded intel: 26 terminal locations 8388 | -5/Factory | Incoming investigation squad redirected 8521 | -5/Factory | Identified exit to Upper Caves 8562 | -5/Factory | Entered Upper Caves 8567 | -5/Upper Caves | Lost 3 parts (1p1n1u) 8579 | -5/Upper Caves | Spotted B-75 Beast 8634 | -5/Upper Caves | Learned Factory stockpile data 8635 | -5/Upper Caves | Discovered new exit (range 9) 8635 | -5/Upper Caves | Entered another Upper Caves area 8797 | -5/Upper Caves | Attracted the attention of an 0b10 checkpoint 8805 | -5/Upper Caves | Discovered new exit (range 7) 8807 | -5/Upper Caves | Learned 4 Factory zone layouts 8808 | -5/Upper Caves | Entered Warlord 8827 | -5/Warlord | Learned location of Armory (-4) 8827 | -5/Warlord | Learned Testing trap positions 8827 | -5/Warlord | Learned Quarantine trap positions 8827 | -5/Warlord | Learned Armory emergency access door positions 8882 | -5/Warlord | Met Warlord 8883 | -5/Warlord | Opened Warlord's prototype stash 8884 | -5/Warlord | Found Prototype Device 8884 | -5/Warlord | Identified Thermal Barrier 8888 | -5/Warlord | Found Prototype Processor 8888 | -5/Warlord | Identified Exp. Armor Integrity Analyzer 8891 | -5/Warlord | Found Prototype Processor 8891 | -5/Warlord | Identified Exp. Targeting Computer 8907 | -5/Warlord | Warlord's base attacked by MAIN.C 9045 | -5/Warlord | Discovered new exit (range 9) 9047 | -5/Warlord | Entered Proximity Caves 9061 | -4/Proximity Caves | Learned 4 Research zone layouts 9069 | -4/Proximity Caves | Lost 3 parts (1p1n1u) 9069 | -4/Proximity Caves | Spotted B-86 Titan 9081 | -4/Proximity Caves | Learned Research security intel 9100 | -4/Proximity Caves | Discovered new exit (range 12) 9113 | -4/Proximity Caves | Entered Factory 9113 | -4/Factory | Evolved 2 slots: Propulsion x2 9114 | -4/Factory | Identified exit to Armory 9117 | -4/Factory | Identified exit to Upper Caves 9117 | -4/Factory | Identified exit to Extension 9128 | -4/Factory | Spotted B-86 Titan 9162 | -4/Factory | Spotted B-86 Titan 9183 | -4/Factory | Entered Extension 9205 | -4/Extension | Lost 4 parts (1p2n1u) 9218 | -4/Extension | Spotted B-86 Titan 9298 | -4/Extension | Rescued a captive Derelict 9332 | -4/Extension | Rescued a captive Derelict 9342 | -4/Extension | Rescued a captive Derelict 9377 | -4/Extension | Spotted B-86 Titan 9385 | -4/Extension | Rescued A7 9454 | -4/Extension | Rescued a captive Derelict 9455 | -4/Extension | Rescued a captive Derelict 9481 | -4/Extension | Rescued a captive Derelict 9499 | -4/Extension | Energy Cycler disabled 9500 | -4/Extension | Rescued a captive Derelict 9500 | -4/Extension | Rescued a captive Derelict 9508 | -4/Extension | Disrupted transfer network 9509 | -4/Extension | Rescued a captive Derelict 9673 | -4/Extension | Discovered new exit (range 10) 9673 | -4/Extension | Discovered new exit (range 6) 9683 | -4/Extension | First assault squad dispatched 9683 | -4/Extension | Entered Cetus 9683 | -4/Cetus | Accompanied by 5 allies (A7) 9687 | -4/Cetus | Spotted Cetus Guard 9687 | -4/Cetus | Spotted Cetus Guard 9688 | -4/Cetus | Acquired a Cetus Manufacturing Module code from A7 9701 | -4/Cetus | Allies destroyed Cetus Guard 9711 | -4/Cetus | Spotted Cetus Guard 9713 | -4/Cetus | Spotted Cetus Guard 9715 | -4/Cetus | Allies destroyed Cetus Guard 9724 | -4/Cetus | Destroyed Cetus Guard 9730 | -4/Cetus | Allies destroyed Cetus Guard 9750 | -4/Cetus | Started Cetus Manufacturing Module 9757 | -4/Cetus | Discovered new exit (range 16) 9775 | -4/Cetus | Manufactured an Enhanced Grunt 9800 | -4/Cetus | Manufactured an Enhanced Grunt 9825 | -4/Cetus | Manufactured an Enhanced Grunt 9850 | -4/Cetus | Manufactured an Enhanced Grunt 9856 | -4/Cetus | Cetus Manufacturing Module disabled 9870 | -4/Cetus | Entered Archives 9870 | -4/Archives | Accompanied by 5 allies (A7) 9876 | -4/Archives | Met Zhirov 9877 | -4/Archives | Discovered new exit (range 15) 9882 | -4/Archives | Reinforcements dispatched to Archives 9914 | -4/Archives | Entered Hub_04(d) 9914 | -4/Hub_04(d) | Accompanied by 3 allies 9925 | -4/Hub_04(d) | Discovered new exit (range 14) 9952 | -4/Hub_04(d) | Found Prototype Device 9953 | -4/Hub_04(d) | Identified Adv. EM Disruption Field 9958 | -4/Hub_04(d) | Found Adv. EM Disruption Field 10013 | -4/Hub_04(d) | Discovered new exit (range 17) 10034 | -4/Hub_04(d) | Discovered new exit (range 15) 10038 | -4/Hub_04(d) | Network Hub disabled 10038 | -4/Hub_04(d) | Spotted Lightning 10038 | -4/Hub_04(d) | Spotted Lightning 10038 | -4/Hub_04(d) | Spotted Lightning 10041 | -4/Hub_04(d) | Entered Research 10041 | -3/Research | Evolved 2 slots: Utility x2 10083 | -3/Research | Allied Derelicts emerged from ambush trap array 10116 | -3/Research | Identified exit to Testing 10167 | -3/Research | Entered Testing 10168 | -3/Testing | Loaded intel: 25 trap records 10366 | -3/Testing | Found Prototype Processor 10368 | -3/Testing | Identified Exp. Target Analyzer 10405 | -3/Testing | Found Prototype Ballistic Cannon 10405 | -3/Testing | Identified Omega Cannon 10459 | -3/Testing | First assault squad dispatched 10532 | -3/Testing | Discovered new exit (range 11) 10534 | -3/Testing | Incoming assault squad redirected 10534 | -3/Testing | Entered Research 10534 | -2/Research | Warlord forces began assault on 0b10 10534 | -2/Research | Evolved 2 slots: Propulsion x1, Utility x1 10588 | -2/Research | Spotted B-90 Cyclops 10601 | -2/Research | Spotted B-90 Cyclops 10606 | -2/Research | Discovered new exit (range 11) 10624 | -2/Research | Lost 3 parts (2p1u) 10644 | -2/Research | Research machine network offline 10679 | -2/Research | Discovered new exit (range 9) 10814 | -2/Research | Identified exit to Quarantine 10815 | -2/Research | Met up with Warlord 10826 | -2/Research | Entered Quarantine 10827 | -2/Quarantine | Loaded intel: 30 trap records 10882 | -2/Quarantine | Spotted Alpha 7 10915 | -2/Quarantine | Found Alien Energy Cannon 10931 | -2/Quarantine | Found Alien Artifact 10931 | -2/Quarantine | Identified Core Reset Matrix 10931 | -2/Quarantine | Identified Core Cannon 10931 | -2/Quarantine | Used Core Reset Matrix 10935 | -2/Quarantine | Detected hypermatrix surge 10935 | -2/Quarantine | Sensed 11 artifacts in vicinity 10979 | -2/Quarantine | Found Hpw. Transdimensional Reconstructor 10981 | -2/Quarantine | Found Dimensional Node Initializer 10981 | -2/Quarantine | Initialized slip node 11019 | -2/Quarantine | Met incapacitated Sigix Warrior 11019 | -2/Quarantine | Lockdown squad dispatched 11020 | -2/Quarantine | Acquired the access code to the Sigix quarantine chamber 11020 | -2/Quarantine | Unlocked Sigix quarantine chamber 11021 | -2/Quarantine | Spotted Lightning 11022 | -2/Quarantine | Warped through subspace to slip node 11025 | -2/Quarantine | Found Hpw. Transdimensional Reconstructor 11060 | -2/Quarantine | Spotted Fortress 11072 | -2/Quarantine | Discovered new exit (range 6) 11073 | -2/Quarantine | Identified exit to Section 7 11073 | -2/Quarantine | Entered Section 7 11074 | -2/Section 7 | Sensed 22 artifacts in vicinity 11082 | -2/Section 7 | Found Integrated Reactor 11082 | -2/Section 7 | Installed Integrated Reactor, increased core energy generation (+10) 11096 | -2/Section 7 | Found Integrity Redistributor 11101 | -2/Section 7 | Discovered new exit (range 16) 11105 | -2/Section 7 | Spotted S7 Guard 11110 | -2/Section 7 | Found Integrated Thermoelectric Network 11110 | -2/Section 7 | Installed Integrated Thermoelectric Network, gained heat-energy exchange potential 11144 | -2/Section 7 | Found Integrated Reactor 11144 | -2/Section 7 | Installed Integrated Reactor, increased core energy generation (+10) 11161 | -2/Section 7 | Spotted S7 Guard 11167 | -2/Section 7 | Found Core Membrane 11167 | -2/Section 7 | Installed Core Membrane, gained immunity to corruption 11178 | -2/Section 7 | Spotted S7 Guard 11191 | -2/Section 7 | Spotted B-90 Cyclops 11208 | -2/Section 7 | Found Integrated Mediator 11208 | -2/Section 7 | Installed Integrated Mediator, increased core attachment efficiency. 11272 | -2/Section 7 | Spotted B-99 Colossus 11284 | -2/Section 7 | Found Integrated Reactor 11284 | -2/Section 7 | Installed Integrated Reactor, increased core energy generation (+10) 11285 | -2/Section 7 | Found Integrated Reactor 11285 | -2/Section 7 | Installed Integrated Reactor, increased core energy generation (+10) 11287 | -2/Section 7 | Found Integrated Reactor 11287 | -2/Section 7 | Installed Integrated Reactor, increased core energy generation (+10) 11298 | -2/Section 7 | Found LRC Armor 11298 | -2/Section 7 | Installed LRC Armor, increased core integrity (+250) 11300 | -2/Section 7 | Found LRC Insulator 11300 | -2/Section 7 | Installed LRC Insulator, gained EM resistance (25) 11312 | -2/Section 7 | Found Integrity Redistributor 11312 | -2/Section 7 | Used Integrity Redistributor, redistributed integrity from core (-49) 11319 | -2/Section 7 | Spotted Executioner 11320 | -2/Section 7 | Spotted Executioner 11323 | -2/Section 7 | Search patrols dispatched 11329 | -2/Section 7 | Activated Sigix Exoskeleton 11329 | -2/Section 7 | Received instructions from Sigix Warrior 11344 | -2/Section 7 | Spotted Alpha 7 11344 | -2/Section 7 | Spotted Alpha 7 11350 | -2/Section 7 | Spotted S7 Guard 11388 | -2/Section 7 | Identified exit to Access 11393 | -2/Section 7 | Sigix Exoskeleton integrity reduced to 80% 11394 | -2/Section 7 | Entered Access 11394 | -1/Access | Accompanied by 1 ally (Sigix Warrior) 11394 | -1/Access | Evolved 2 slots: Propulsion x1, Utility x1 11421 | -1/Access | Energy Cycler disabled 11444 | -1/Access | Spotted Striker 11448 | -1/Access | Warped through subspace 11466 | -1/Access | Sigix Exoskeleton integrity reduced to 60% 11469 | -1/Access | Build established: Alien-Sprinter 11499 | -1/Access | Sigix Exoskeleton integrity reduced to 40% 11537 | -1/Access | Sigix Exoskeleton integrity reduced to 20% 11566 | -1/Access | Spotted B-99 Colossus 11569 | -1/Access | Spotted B-99 Colossus 11572 | -1/Access | Lost 3 parts (2n1u) 11573 | -1/Access | Discovered new exit (range 11) 11573 | -1/Access | Identified exit to Surface 11582 | *** | Destroyed 0b10! Last Messages --------------- 11572_ Slug penetrates Wall. 11573_ EXIT=FOUND 11573_ Slug penetrates Sealed Heavy Doors. 11573_ Slug penetrates Main Access Shell. 11573_ EXIT=IDENTIFIED: SURFACE 11576_ Slug penetrates Main Access Shell. 11577_ Beam penetrates Wall. 11577_ K-01 Serf cleans the Terminal. 11579_ Penetrated by Slug. 11579_ Beam penetrates H-88 Terminator. 11579_ H-88 Terminator suffers critical hit (Destroy). 11579_ Destroyed Unknown Ballistic Gun. 11579_ Beam penetrates H-88 Terminator. 11579_ H-88 Terminator suffers critical hit (Destroy). 11579_ H-88 Terminator destroyed. 11579_ Beam penetrates Wall. 11579_ Slug penetrates Sealed Heavy Doors. 11580_ K-01 Serf collects debris. 11582_ Penetrated by Slug. [Achievement: Partners In Destruction] Map ----- +----------------------------------------------------+ | #??????????????????????????????????? | | [ #??????????????????????????????????? | | ###/#"#########??????????????????????????????????? | | ??# #????#####????????????????????????????????? | | ??# #??? ????????????????????????????????? | | ??# #??? !?????????????????????????????????? | | ??+ #?? ?????????????????????????????????? | | ??# #?? ????????????????????????????????? | | ??# #? ????????????????????????????????? | | ??# #? "" ???????????????????????????????? | | ??# # "" ???????????????????????????????? | | ??/ # "" #??????????????????????????????? | | ??# + S #??????????????????????????????? | | ??# # "" #??????????????????????????????? | | ??# # "" ???????????????????????????????? | | ??# #? "" = ???????????????????????????????? | | ??# #? ????????????????????????????????? | | ??# #?? ????????????????????????????????? | | ??# #??######?????????????????????????????????? | | ??# #???????????????????????#??????w??????????? | | ??# #?#########??######???? ####### #????????? | | ??# #?# "??" ???? #????????? | | # ### """" ???? #????????? | | ##" #"" BB " "" """""" #????????? | | %X #????????? | | """" " "@ " " ???????? | | "??" " "" "?? [%[ #????????? | | "??" " "???? ! "????????? | | #########" "??" """"""?????? #????????? | | ????????## "??" ?????????????"" ?????????? | | ?????????# "??" ??????????????????????????? | | ?????????#########??###??????????????????????????? | | ?????????????????????????????????????????????????? | | ?????????????????????????????????????????????????? | | ?????????????????????????????????????????????????? | | ?????????????????????????????????????????????????? | | ?????????????????????????????????????????????????? | | ?????????????????????????????????????????????????? | | ?????????????????????????????????????????????????? | | ?????????????????????????????????????????????????? | | ?????????????????????????????????????????????????? | | ?????????????????????????????????????????????????? | | ?????????????????????????????????????????????????? | | ????????????????????????????????????????????????? | | ????????????????????????????????????????????????? | | ???????????????????????????????????????????????? | | ???????????????????????????????????????????????? | | ???????????????????????????????????????????????? | | ???????????????????????????????????????????????? | | ???????????????????????????????????????????????? | +----------------------------------------------------+ Best States ------------- Heat Dissipation 149 Energy Generation 81 Energy Capacity 1480 Matter Stores 300 Matter Capacity 300 Sight Range 16 Robot Scan Range 16 Terrain Scan Range 16 Terrain Scan Density 210 Base Temperature (-) 200 Armor Coverage 625 Resistance: EM 50 Propulsion Shielding 66 Utility Shielding 66 Evasion (%) 68 Targeting Accuracy 20 Armor Integrity Analysis 50 Recoil Reduction 4 Energy Filtering 30 Salvage Targeting 3 Offensive Hacking 26 Defensive Hacking 14 Item Schematics ----------------- None Robot Schematics ------------------ A-02 Transporter | -2/Section 7 | Hacked Fabricated ------------ Nothing Alien Tech Used ----------------- Core Expander Core Reset Matrix Dimensional Node Initializer High-powered Transdimensional Reconstructor Integrated Reactor Integrated Thermoelectric Network Core Membrane Integrated Mediator LRC Armor LRC Insulator Integrity Redistributor Core Cannon Achievements -------------- Partners In Destruction Challenges ------------ None Game ------ Seed DispersionFusionClaws Manual? 1 Play Time 06:24:02 Cumulative 644.2 hours Start 2023.06.09 @ 16:06:55 End 2023.06.10 @ 20:35:11 Sessions 6 Manual Loads 0 Difficulty Rogue Special Mode None Game No. 556 Rogue 341 Adventurer 112 Explorer 103 Win Type 3 Total 42 Types 26/0/8/3/0/0/4/1/0 Lore% 88 Gallery% 93 Achievement% 82 Wizard Run 0 Options --------- ASCII 0 Keyboard 1 Movement Vi Keybinds 1 Fullscreen 1 Font 16/Terminus Map View 78x57 Tactical HUD 1 Map Filters NONE Filters NONE Steam 1 RUN: b2e8937d-4fd1-4266-9d65-e7c9662c51e0